[Event "Titled Tuesday Blitz October 31 Early 2023"]
[White "Alves Campelo, Danilo Cesar De L"]
[Black "Begunov, Konstantin"]
[WhiteFideId "2123657"]
[BlackFideId "4118510"]
[WhiteElo "1907"]
[BlackElo "2408"]
[Result "0-1"]
[Round "2"]
[TimeControl "180+1"]
[Date "2023.10.31"]
[WhiteClock "0:00:00"]
[BlackClock "0:01:01"]
[Board "202"]

1. e4 {[%clk 0:03:00]}  c5 {[%clk 0:02:59]} 2. Nf3 {[%clk 0:02:59]}  d6 {[%clk 0:03:00]} 3. d4 {[%clk 0:02:59]}  cxd4 {[%clk 0:03:01]} 4. Nxd4 {[%clk 0:02:59]}  Nf6 {[%clk 0:03:01]} 5. Nc3 {[%clk 0:02:59]}  a6 {[%clk 0:03:02]} 6. Bg5 {[%clk 0:02:59]}  e6 {[%clk 0:03:02]} 7. f4 {[%clk 0:02:59]}  Qb6 {[%clk 0:03:03]} 8. Qd2 {[%clk 0:02:52]}  Nc6 {[%clk 0:03:02]} 9. O-O-O {[%clk 0:02:41]}  Bd7 {[%clk 0:03:01]} 10. Nxc6 {[%clk 0:02:27]}  Bxc6 {[%clk 0:02:52]} 11. e5 {[%clk 0:02:25]}  dxe5 {[%clk 0:02:28]} 12. fxe5 {[%clk 0:02:21]}  Nd7 {[%clk 0:02:24]} 13. Qe1 {[%clk 0:01:22]}  Rc8 {[%clk 0:01:59]} 14. Ne4 {[%clk 0:00:40]}  Nxe5 {[%clk 0:01:38]} 15. Nd6+ {[%clk 0:00:18]}  Bxd6 {[%clk 0:01:37]} 16. Rxd6 {[%clk 0:00:19]}  Qc5 {[%clk 0:01:25]} 17. Qd2 {[%clk 0:00:15]}  Bd5 {[%clk 0:01:05]} 18. c4 {[%clk 0:00:00]}  Qxd6 {[%clk 0:01:01]} 0-1


[Site "https://www.chess.com"]

[Event "Titled Tuesday Blitz October 31 Early 2023"]
[White "ssgm49"]
[Black "Luong Phuong Hanh"]
[BlackFideId "12401013"]
[WhiteElo "1829"]
[BlackElo "2402"]
[Result "0-1"]
[Round "2"]
[TimeControl "180+1"]
[Date "2023.10.31"]
[WhiteClock "0:00:00"]
[BlackClock "0:01:53"]
[Board "205"]

1. e4 {[%clk 0:02:58]}  c5 {[%clk 0:02:56]} 2. Nf3 {[%clk 0:02:56]}  e6 {[%clk 0:02:56]} 3. d4 {[%clk 0:02:38]}  cxd4 {[%clk 0:02:57]} 4. Nxd4 {[%clk 0:02:34]}  a6 {[%clk 0:02:56]} 5. Nc3 {[%clk 0:02:12]}  Qc7 {[%clk 0:02:54]} 6. a3 {[%clk 0:02:04]}  b5 {[%clk 0:02:50]} 7. Be3 {[%clk 0:01:45]}  Bb7 {[%clk 0:02:49]} 8. f3 {[%clk 0:01:43]}  Nf6 {[%clk 0:02:49]} 9. Be2 {[%clk 0:01:40]}  d5 {[%clk 0:02:49]} 10. exd5 {[%clk 0:01:32]}  Nxd5 {[%clk 0:02:49]} 11. Nxd5 {[%clk 0:01:32]}  Bxd5 {[%clk 0:02:49]} 12. O-O {[%clk 0:01:31]}  Be7 {[%clk 0:02:49]} 13. Qd2 {[%clk 0:01:28]}  O-O {[%clk 0:02:49]} 14. Rac1 {[%clk 0:01:05]}  Nc6 {[%clk 0:02:42]} 15. Nxc6 {[%clk 0:00:32]}  Qxc6 {[%clk 0:02:34]} 16. Bd3 {[%clk 0:00:30]}  Rad8 {[%clk 0:02:33]} 17. Qe2 {[%clk 0:00:29]}  Bf6 {[%clk 0:02:31]} 18. c4 {[%clk 0:00:27]}  bxc4 {[%clk 0:02:26]} 19. Bxc4 {[%clk 0:00:26]}  Bxc4 {[%clk 0:02:27]} 20. Rxc4 {[%clk 0:00:26]}  Qb5 {[%clk 0:02:27]} 21. Rc2 {[%clk 0:00:22]}  Qb3 {[%clk 0:02:25]} 22. Rfc1 {[%clk 0:00:19]}  Rd3 {[%clk 0:02:23]} 23. Bc5 {[%clk 0:00:17]}  Rfd8 {[%clk 0:02:21]} 24. Bb4 {[%clk 0:00:16]}  Bd4+ {[%clk 0:02:17]} 25. Kh1 {[%clk 0:00:15]}  Be3 {[%clk 0:02:17]} 26. Rb1 {[%clk 0:00:13]}  h6 {[%clk 0:02:13]} 27. Rf1 {[%clk 0:00:09]}  Qd5 {[%clk 0:02:05]} 28. h3 {[%clk 0:00:09]}  a5 {[%clk 0:02:05]} 29. Bc3 {[%clk 0:00:08]}  Ba7 {[%clk 0:02:02]} 30. Kh2 {[%clk 0:00:07]}  Bb8+ {[%clk 0:02:02]} 31. Kh1 {[%clk 0:00:07]}  Qd6 {[%clk 0:02:02]} 32. f4 {[%clk 0:00:07]}  Qd5 {[%clk 0:01:58]} 33. Rcc1 {[%clk 0:00:05]}  Rxh3+ {[%clk 0:01:58]} 34. Kg1 {[%clk 0:00:04]}  Ba7+ {[%clk 0:01:58]} 35. Rf2 {[%clk 0:00:00]}  Rg3 {[%clk 0:01:53]} 0-1


[Site "https://www.chess.com"]

[Event "Titled Tuesday Blitz October 31 Early 2023"]
[White "Martinez Alcantara, Jose Eduardo"]
[Black "Fier, Alexandr"]
[WhiteFideId "3805662"]
[BlackFideId "2107139"]
[WhiteElo "3145"]
[BlackElo "2733"]
[Result "1/2-1/2"]
[Round "3"]
[TimeControl "180+1"]
[Date "2023.10.31"]
[WhiteClock "0:00:33"]
[BlackClock "0:00:34"]
[Board "2"]

1. e4 {[%clk 0:03:00]}  e5 {[%clk 0:03:00]} 2. Nf3 {[%clk 0:03:01]}  Nf6 {[%clk 0:03:00]} 3. Nc3 {[%clk 0:03:02]}  Nc6 {[%clk 0:03:00]} 4. h3 {[%clk 0:03:02]}  Nd4 {[%clk 0:02:58]} 5. Bc4 {[%clk 0:02:58]}  Nxf3+ {[%clk 0:02:47]} 6. Qxf3 {[%clk 0:02:59]}  d6 {[%clk 0:02:46]} 7. d3 {[%clk 0:02:59]}  Be6 {[%clk 0:02:45]} 8. O-O {[%clk 0:02:57]}  Be7 {[%clk 0:02:45]} 9. Qe2 {[%clk 0:02:52]}  O-O {[%clk 0:02:44]} 10. f4 {[%clk 0:02:52]}  exf4 {[%clk 0:02:44]} 11. Bxf4 {[%clk 0:02:53]}  Re8 {[%clk 0:02:42]} 12. Bb3 {[%clk 0:02:50]}  d5 {[%clk 0:02:39]} 13. e5 {[%clk 0:02:44]}  Nd7 {[%clk 0:02:25]} 14. d4 {[%clk 0:02:37]}  c6 {[%clk 0:02:24]} 15. Rae1 {[%clk 0:02:18]}  a5 {[%clk 0:02:19]} 16. a4 {[%clk 0:02:17]}  Qb6 {[%clk 0:02:18]} 17. Be3 {[%clk 0:02:15]}  Nf8 {[%clk 0:02:05]} 18. Kh1 {[%clk 0:02:14]}  Ng6 {[%clk 0:02:06]} 19. Qh5 {[%clk 0:02:10]}  Bf8 {[%clk 0:01:59]} 20. Ne2 {[%clk 0:02:09]}  c5 {[%clk 0:01:46]} 21. dxc5 {[%clk 0:02:01]}  Bxc5 {[%clk 0:01:47]} 22. Bxc5 {[%clk 0:02:01]}  Qxc5 {[%clk 0:01:47]} 23. Nf4 {[%clk 0:01:49]}  Nxf4 {[%clk 0:01:47]} 24. Rxf4 {[%clk 0:01:50]}  b5 {[%clk 0:01:42]} 25. axb5 {[%clk 0:01:50]}  Qxb5 {[%clk 0:01:42]} 26. Ba4 {[%clk 0:01:48]}  Qxb2 {[%clk 0:01:40]} 27. Bxe8 {[%clk 0:01:48]}  Rxe8 {[%clk 0:01:41]} 28. Qe2 {[%clk 0:01:38]}  h6 {[%clk 0:01:29]} 29. Ra4 {[%clk 0:01:21]}  Qc3 {[%clk 0:01:28]} 30. Qe3 {[%clk 0:01:13]}  Qxc2 {[%clk 0:01:26]} 31. Rxa5 {[%clk 0:01:14]}  Rb8 {[%clk 0:01:21]} 32. Rc5 {[%clk 0:01:13]}  Qa2 {[%clk 0:01:17]} 33. Rec1 {[%clk 0:01:02]}  Bf5 {[%clk 0:01:12]} 34. Qg3 {[%clk 0:00:44]}  Re8 {[%clk 0:00:50]} 35. Kh2 {[%clk 0:00:40]}  Re6 {[%clk 0:00:44]} 36. Rf1 {[%clk 0:00:30]}  Rg6 {[%clk 0:00:28]} 37. Qf2 {[%clk 0:00:29]}  Qxf2 {[%clk 0:00:27]} 38. Rxf2 {[%clk 0:00:30]}  Be6 {[%clk 0:00:27]} 39. Ra5 {[%clk 0:00:28]}  Rg5 {[%clk 0:00:27]} 40. Re2 {[%clk 0:00:29]}  Rf5 {[%clk 0:00:27]} 41. Kg3 {[%clk 0:00:29]}  Rf1 {[%clk 0:00:27]} 42. Ra8+ {[%clk 0:00:29]}  Kh7 {[%clk 0:00:27]} 43. Ra4 {[%clk 0:00:29]}  g5 {[%clk 0:00:27]} 44. Ra8 {[%clk 0:00:26]}  Kg7 {[%clk 0:00:27]} 45. Rd8 {[%clk 0:00:26]}  Rf4 {[%clk 0:00:27]} 46. Kh2 {[%clk 0:00:24]}  Rc4 {[%clk 0:00:27]} 47. g4 {[%clk 0:00:23]}  Rb4 {[%clk 0:00:26]} 48. Re3 {[%clk 0:00:23]}  Rc4 {[%clk 0:00:26]} 49. Kg3 {[%clk 0:00:23]}  Rb4 {[%clk 0:00:27]} 50. Rd6 {[%clk 0:00:20]}  Rc4 {[%clk 0:00:27]} 51. Rd8 {[%clk 0:00:19]}  Rb4 {[%clk 0:00:26]} 52. Ra8 {[%clk 0:00:20]}  Rc4 {[%clk 0:00:27]} 53. Ra1 {[%clk 0:00:20]}  Rb4 {[%clk 0:00:27]} 54. Rd1 {[%clk 0:00:20]}  Rc4 {[%clk 0:00:27]} 55. Rd2 {[%clk 0:00:21]}  Rb4 {[%clk 0:00:27]} 56. Kf3 {[%clk 0:00:21]}  Rc4 {[%clk 0:00:27]} 57. Red3 {[%clk 0:00:21]}  Re4 {[%clk 0:00:26]} 58. Re3 {[%clk 0:00:22]}  Rf4+ {[%clk 0:00:27]} 59. Kg3 {[%clk 0:00:22]}  Rb4 {[%clk 0:00:27]} 60. Rf2 {[%clk 0:00:22]}  Rc4 {[%clk 0:00:27]} 61. Ree2 {[%clk 0:00:21]}  Rc3+ {[%clk 0:00:27]} 62. Rf3 {[%clk 0:00:22]}  Rc4 {[%clk 0:00:28]} 63. Re1 {[%clk 0:00:22]}  Rb4 {[%clk 0:00:28]} 64. Rd1 {[%clk 0:00:23]}  Re4 {[%clk 0:00:28]} 65. Kf2 {[%clk 0:00:21]}  Rxe5 {[%clk 0:00:28]} 66. Re3 {[%clk 0:00:22]}  Rxe3 {[%clk 0:00:28]} 67. Kxe3 {[%clk 0:00:22]}  f5 {[%clk 0:00:27]} 68. gxf5 {[%clk 0:00:23]}  Bxf5 {[%clk 0:00:27]} 69. h4 {[%clk 0:00:24]}  gxh4 {[%clk 0:00:24]} 70. Rxd5 {[%clk 0:00:24]}  Bg4 {[%clk 0:00:23]} 71. Kf4 {[%clk 0:00:24]}  h5 {[%clk 0:00:24]} 72. Rd2 {[%clk 0:00:21]}  h3 {[%clk 0:00:24]} 73. Rf2 {[%clk 0:00:20]}  Kf6 {[%clk 0:00:24]} 74. Rb2 {[%clk 0:00:19]}  Ke6 {[%clk 0:00:24]} 75. Rd2 {[%clk 0:00:19]}  Kf6 {[%clk 0:00:22]} 76. Kg3 {[%clk 0:00:20]}  Ke5 {[%clk 0:00:22]} 77. Kh2 {[%clk 0:00:21]}  Ke4 {[%clk 0:00:23]} 78. Rb2 {[%clk 0:00:22]}  Kf4 {[%clk 0:00:23]} 79. Rb4+ {[%clk 0:00:22]}  Kg5 {[%clk 0:00:23]} 80. Rb3 {[%clk 0:00:23]}  Kh4 {[%clk 0:00:24]} 81. Rb5 {[%clk 0:00:23]}  Bf3 {[%clk 0:00:23]} 82. Rb3 {[%clk 0:00:21]}  Bg4 {[%clk 0:00:24]} 83. Rb4 {[%clk 0:00:22]}  Kg5 {[%clk 0:00:24]} 84. Ra4 {[%clk 0:00:23]}  Kf5 {[%clk 0:00:24]} 85. Ra5+ {[%clk 0:00:24]}  Kf4 {[%clk 0:00:25]} 86. Ra7 {[%clk 0:00:25]}  Kg5 {[%clk 0:00:25]} 87. Rc7 {[%clk 0:00:26]}  Kf5 {[%clk 0:00:26]} 88. Rb7 {[%clk 0:00:26]}  Kg5 {[%clk 0:00:26]} 89. Rb8 {[%clk 0:00:27]}  Kf5 {[%clk 0:00:27]} 90. Rd8 {[%clk 0:00:28]}  Kg5 {[%clk 0:00:28]} 91. Rf8 {[%clk 0:00:29]}  Kh4 {[%clk 0:00:28]} 92. Rg8 {[%clk 0:00:29]}  Bf5 {[%clk 0:00:28]} 93. Rg7 {[%clk 0:00:28]}  Bg4 {[%clk 0:00:28]} 94. Rf7 {[%clk 0:00:29]}  Kg5 {[%clk 0:00:28]} 95. Kg3 {[%clk 0:00:29]}  Be6 {[%clk 0:00:28]} 96. Rf1 {[%clk 0:00:29]}  Bg4 {[%clk 0:00:28]} 97. Ra1 {[%clk 0:00:29]}  Kf5 {[%clk 0:00:29]} 98. Ra5+ {[%clk 0:00:29]}  Ke4 {[%clk 0:00:30]} 99. Rb5 {[%clk 0:00:29]}  Ke3 {[%clk 0:00:30]} 100. Re5+ {[%clk 0:00:29]}  Kd4 {[%clk 0:00:31]} 101. Re7 {[%clk 0:00:30]}  Kd3 {[%clk 0:00:31]} 102. Re8 {[%clk 0:00:30]}  Kd2 {[%clk 0:00:32]} 103. Kh2 {[%clk 0:00:31]}  Kd3 {[%clk 0:00:32]} 104. Rd8+ {[%clk 0:00:32]}  Ke3 {[%clk 0:00:32]} 105. Rf8 {[%clk 0:00:32]}  Ke4 {[%clk 0:00:33]} 106. Rb8 {[%clk 0:00:33]}  Kf4 {[%clk 0:00:34]} 107. Rb4+ {[%clk 0:00:33]}  Kg5 {[%clk 0:00:34]} 1/2-1/2


[Site "https://www.chess.com"]

[Event "Titled Tuesday Blitz October 31 Early 2023"]
[White "NovozhilovSemen"]
[Black "Andreikin, Dmitry"]
[BlackFideId "4158814"]
[WhiteElo "2732"]
[BlackElo "3098"]
[Result "0-1"]
[Round "3"]
[TimeControl "180+1"]
[Date "2023.10.31"]
[WhiteClock "0:00:02"]
[BlackClock "0:00:24"]
[Board "3"]

1. d4 {[%clk 0:03:00]}  Nf6 {[%clk 0:02:58]} 2. Nf3 {[%clk 0:03:00]}  e6 {[%clk 0:02:55]} 3. c4 {[%clk 0:03:00]}  b6 {[%clk 0:02:54]} 4. e3 {[%clk 0:03:01]}  Bb7 {[%clk 0:02:54]} 5. Bd3 {[%clk 0:03:01]}  d5 {[%clk 0:02:51]} 6. O-O {[%clk 0:03:00]}  Nbd7 {[%clk 0:02:51]} 7. b3 {[%clk 0:03:00]}  Bd6 {[%clk 0:02:51]} 8. Bb2 {[%clk 0:03:00]}  O-O {[%clk 0:02:50]} 9. Nc3 {[%clk 0:03:00]}  dxc4 {[%clk 0:02:23]} 10. bxc4 {[%clk 0:03:00]}  e5 {[%clk 0:02:16]} 11. Nd2 {[%clk 0:02:14]}  Re8 {[%clk 0:02:10]} 12. Re1 {[%clk 0:02:08]}  Nf8 {[%clk 0:02:01]} 13. Nde4 {[%clk 0:01:59]}  Nxe4 {[%clk 0:01:57]} 14. Nxe4 {[%clk 0:01:57]}  Bb4 {[%clk 0:01:56]} 15. Re2 {[%clk 0:01:56]}  Ng6 {[%clk 0:01:53]} 16. a3 {[%clk 0:01:44]}  Bf8 {[%clk 0:01:42]} 17. d5 {[%clk 0:01:43]}  Bc8 {[%clk 0:01:33]} 18. Ng3 {[%clk 0:01:38]}  Bd6 {[%clk 0:01:32]} 19. Bf5 {[%clk 0:01:25]}  Qh4 {[%clk 0:01:23]} 20. Qa4 {[%clk 0:01:01]}  Bxf5 {[%clk 0:01:20]} 21. Nxf5 {[%clk 0:01:01]}  Qg4 {[%clk 0:01:20]} 22. Qc2 {[%clk 0:00:56]}  e4 {[%clk 0:01:12]} 23. Nxd6 {[%clk 0:00:33]}  Nh4 {[%clk 0:01:04]} 24. g3 {[%clk 0:00:05]}  cxd6 {[%clk 0:01:01]} 25. Qd1 {[%clk 0:00:02]}  Rac8 {[%clk 0:00:56]} 26. Rc2 {[%clk 0:00:02]}  Nf3+ {[%clk 0:00:54]} 27. Kg2 {[%clk 0:00:02]}  h5 {[%clk 0:00:48]} 28. h3 {[%clk 0:00:03]}  Qg6 {[%clk 0:00:48]} 29. a4 {[%clk 0:00:03]}  h4 {[%clk 0:00:44]} 30. a5 {[%clk 0:00:04]}  b5 {[%clk 0:00:42]} 31. cxb5 {[%clk 0:00:03]}  Ne1+ {[%clk 0:00:41]} 32. Qxe1 {[%clk 0:00:01]}  Rxc2 {[%clk 0:00:42]} 33. Bd4 {[%clk 0:00:01]}  hxg3 {[%clk 0:00:37]} 34. Kh1 {[%clk 0:00:01]}  gxf2 {[%clk 0:00:37]} 35. Qd1 {[%clk 0:00:02]}  Qf5 {[%clk 0:00:24]} 36. Qg4 {[%clk 0:00:02]}  f1=Q+ {[%clk 0:00:24]} 0-1


[Site "https://www.chess.com"]

[Event "Titled Tuesday Blitz October 31 Early 2023"]
[White "carokannlover213"]
[Black "Pranav, V"]
[BlackFideId "25060783"]
[WhiteElo "2725"]
[BlackElo "3015"]
[Result "0-1"]
[Round "3"]
[TimeControl "180+1"]
[Date "2023.10.31"]
[WhiteClock "0:00:10"]
[BlackClock "0:01:48"]
[Board "7"]

1. e4 {[%clk 0:03:00]}  c6 {[%clk 0:02:59]} 2. Nc3 {[%clk 0:02:57]}  d5 {[%clk 0:02:58]} 3. Nf3 {[%clk 0:02:57]}  Bg4 {[%clk 0:02:59]} 4. h3 {[%clk 0:02:57]}  Bxf3 {[%clk 0:02:59]} 5. Qxf3 {[%clk 0:02:58]}  e6 {[%clk 0:03:00]} 6. d3 {[%clk 0:02:50]}  Nd7 {[%clk 0:02:59]} 7. Be2 {[%clk 0:02:50]}  Bd6 {[%clk 0:02:50]} 8. O-O {[%clk 0:02:48]}  Ngf6 {[%clk 0:02:46]} 9. d4 {[%clk 0:02:47]}  dxe4 {[%clk 0:02:43]} 10. Nxe4 {[%clk 0:02:47]}  Nxe4 {[%clk 0:02:44]} 11. Qxe4 {[%clk 0:02:48]}  O-O {[%clk 0:02:45]} 12. b3 {[%clk 0:02:47]}  e5 {[%clk 0:02:44]} 13. Bb2 {[%clk 0:02:28]}  f5 {[%clk 0:02:42]} 14. Qe3 {[%clk 0:01:59]}  e4 {[%clk 0:02:39]} 15. Bc4+ {[%clk 0:01:58]}  Kh8 {[%clk 0:02:38]} 16. Be6 {[%clk 0:01:58]}  Qe7 {[%clk 0:02:32]} 17. Bxd7 {[%clk 0:01:53]}  Qxd7 {[%clk 0:02:31]} 18. f3 {[%clk 0:01:43]}  Rae8 {[%clk 0:02:28]} 19. fxe4 {[%clk 0:01:43]}  Rxe4 {[%clk 0:02:29]} 20. Qd2 {[%clk 0:01:43]}  Bb8 {[%clk 0:02:19]} 21. d5 {[%clk 0:00:33]}  cxd5 {[%clk 0:02:05]} 22. Qg5 {[%clk 0:00:31]}  d4 {[%clk 0:01:57]} 23. Rad1 {[%clk 0:00:24]}  Qd6 {[%clk 0:01:53]} 24. g3 {[%clk 0:00:24]}  h6 {[%clk 0:01:48]} 25. Rxd4 {[%clk 0:00:10]} 0-1


[Site "https://www.chess.com"]

[Event "Titled Tuesday Blitz October 31 Early 2023"]
[White "Le, Quang Liem"]
[Black "Hua, Lefong"]
[WhiteFideId "12401137"]
[BlackFideId "2602253"]
[WhiteElo "3007"]
[BlackElo "2721"]
[Result "1-0"]
[Round "3"]
[TimeControl "180+1"]
[Date "2023.10.31"]
[WhiteClock "0:00:16"]
[BlackClock "0:00:02"]
[Board "8"]

1. Nf3 {[%clk 0:03:00]}  Nf6 {[%clk 0:03:00]} 2. c4 {[%clk 0:03:00]}  g6 {[%clk 0:03:00]} 3. Nc3 {[%clk 0:03:01]}  Bg7 {[%clk 0:03:00]} 4. e4 {[%clk 0:02:59]}  d6 {[%clk 0:03:00]} 5. d4 {[%clk 0:03:00]}  O-O {[%clk 0:03:01]} 6. Be2 {[%clk 0:02:58]}  Bg4 {[%clk 0:03:01]} 7. Be3 {[%clk 0:02:57]}  Nfd7 {[%clk 0:03:01]} 8. Rc1 {[%clk 0:02:48]}  c5 {[%clk 0:02:59]} 9. d5 {[%clk 0:02:45]}  Na6 {[%clk 0:03:00]} 10. h3 {[%clk 0:02:41]}  Bxf3 {[%clk 0:02:59]} 11. Bxf3 {[%clk 0:02:42]}  Nc7 {[%clk 0:02:59]} 12. O-O {[%clk 0:02:32]}  a6 {[%clk 0:02:54]} 13. a4 {[%clk 0:02:32]}  e6 {[%clk 0:02:54]} 14. Re1 {[%clk 0:02:04]}  exd5 {[%clk 0:02:53]} 15. exd5 {[%clk 0:02:02]}  Rb8 {[%clk 0:02:39]} 16. Be2 {[%clk 0:02:01]}  Re8 {[%clk 0:02:38]} 17. Qd2 {[%clk 0:01:56]}  Ne5 {[%clk 0:02:24]} 18. f4 {[%clk 0:01:49]}  Nd7 {[%clk 0:02:24]} 19. Bf2 {[%clk 0:01:50]}  f5 {[%clk 0:02:17]} 20. Bd3 {[%clk 0:01:42]}  Rxe1+ {[%clk 0:02:09]} 21. Rxe1 {[%clk 0:01:42]}  Qf8 {[%clk 0:02:02]} 22. a5 {[%clk 0:01:25]}  Re8 {[%clk 0:01:57]} 23. Rb1 {[%clk 0:01:20]}  Qf6 {[%clk 0:01:37]} 24. Na4 {[%clk 0:01:02]}  Rb8 {[%clk 0:01:02]} 25. b4 {[%clk 0:00:58]}  cxb4 {[%clk 0:01:02]} 26. Qxb4 {[%clk 0:00:53]}  Bf8 {[%clk 0:00:49]} 27. Re1 {[%clk 0:00:50]}  Qd8 {[%clk 0:00:47]} 28. Kh2 {[%clk 0:00:38]}  Ne8 {[%clk 0:00:46]} 29. Ba7 {[%clk 0:00:30]}  Rc8 {[%clk 0:00:41]} 30. Qxb7 {[%clk 0:00:29]}  Rc7 {[%clk 0:00:33]} 31. Bb6 {[%clk 0:00:26]}  Rxb7 {[%clk 0:00:24]} 32. Bxd8 {[%clk 0:00:27]}  Kf7 {[%clk 0:00:23]} 33. Bb6 {[%clk 0:00:25]}  Nc5 {[%clk 0:00:20]} 34. Nxc5 {[%clk 0:00:23]}  dxc5 {[%clk 0:00:21]} 35. Re6 {[%clk 0:00:21]}  Nd6 {[%clk 0:00:18]} 36. Bxc5 {[%clk 0:00:20]}  Rd7 {[%clk 0:00:13]} 37. Be3 {[%clk 0:00:19]}  Bg7 {[%clk 0:00:10]} 38. c5 {[%clk 0:00:19]}  Nb5 {[%clk 0:00:11]} 39. Rxa6 {[%clk 0:00:16]}  Na3 {[%clk 0:00:08]} 40. d6 {[%clk 0:00:16]}  Bc3 {[%clk 0:00:02]} 41. Bc1 {[%clk 0:00:16]} 1-0


[Site "https://www.chess.com"]

[Event "Titled Tuesday Blitz October 31 Early 2023"]
[White "Nagare Kaivalya Sandip"]
[Black "Chigaev, Maksim"]
[WhiteFideId "25957929"]
[BlackFideId "4108116"]
[WhiteElo "2700"]
[BlackElo "2917"]
[Result "0-1"]
[Round "3"]
[TimeControl "180+1"]
[Date "2023.10.31"]
[WhiteClock "0:00:23"]
[BlackClock "0:00:07"]
[Board "12"]

1. e4 {[%clk 0:02:53]}  c5 {[%clk 0:02:48]} 2. Nf3 {[%clk 0:02:53]}  d6 {[%clk 0:02:48]} 3. d4 {[%clk 0:02:54]}  cxd4 {[%clk 0:02:49]} 4. Nxd4 {[%clk 0:02:55]}  Nf6 {[%clk 0:02:49]} 5. Nc3 {[%clk 0:02:55]}  a6 {[%clk 0:02:50]} 6. Bg5 {[%clk 0:02:55]}  e6 {[%clk 0:02:49]} 7. f4 {[%clk 0:02:55]}  h6 {[%clk 0:02:50]} 8. Bh4 {[%clk 0:02:55]}  Nbd7 {[%clk 0:02:50]} 9. Qf3 {[%clk 0:02:55]}  e5 {[%clk 0:02:50]} 10. Nf5 {[%clk 0:02:49]}  exf4 {[%clk 0:02:49]} 11. Qxf4 {[%clk 0:02:31]}  g5 {[%clk 0:02:47]} 12. Nxd6+ {[%clk 0:02:32]}  Bxd6 {[%clk 0:02:47]} 13. Qxd6 {[%clk 0:02:32]}  gxh4 {[%clk 0:02:47]} 14. e5 {[%clk 0:02:33]}  Nxe5 {[%clk 0:02:41]} 15. Qxe5+ {[%clk 0:02:32]}  Qe7 {[%clk 0:02:41]} 16. Qxe7+ {[%clk 0:02:32]}  Kxe7 {[%clk 0:02:42]} 17. Bc4 {[%clk 0:02:25]}  Be6 {[%clk 0:02:22]} 18. Bxe6 {[%clk 0:02:24]}  fxe6 {[%clk 0:02:23]} 19. O-O {[%clk 0:02:21]}  Rhg8 {[%clk 0:02:22]} 20. Rf4 {[%clk 0:02:16]}  Rg4 {[%clk 0:02:21]} 21. Raf1 {[%clk 0:02:07]}  Rxf4 {[%clk 0:02:21]} 22. Rxf4 {[%clk 0:02:08]}  Rd8 {[%clk 0:02:16]} 23. Rxh4 {[%clk 0:02:01]}  Rd2 {[%clk 0:02:15]} 24. Rxh6 {[%clk 0:02:01]}  Rxc2 {[%clk 0:02:14]} 25. g4 {[%clk 0:01:58]}  Nxg4 {[%clk 0:02:04]} 26. Rh7+ {[%clk 0:01:58]}  Kf6 {[%clk 0:02:03]} 27. Rxb7 {[%clk 0:01:59]}  Nxh2 {[%clk 0:02:01]} 28. Ne4+ {[%clk 0:01:42]}  Ke5 {[%clk 0:01:52]} 29. Nf2 {[%clk 0:01:36]}  Nf3+ {[%clk 0:01:52]} 30. Kg2 {[%clk 0:01:36]}  Nd4 {[%clk 0:01:17]} 31. a4 {[%clk 0:01:29]}  Kf4 {[%clk 0:01:11]} 32. Rf7+ {[%clk 0:00:56]}  Ke3 {[%clk 0:01:00]} 33. Kf1 {[%clk 0:00:56]}  Nf5 {[%clk 0:00:45]} 34. Nd1+ {[%clk 0:00:45]}  Kf3 {[%clk 0:00:43]} 35. b4 {[%clk 0:00:36]}  Rc4 {[%clk 0:00:30]} 36. b5 {[%clk 0:00:33]}  Rxa4 {[%clk 0:00:28]} 37. bxa6 {[%clk 0:00:30]}  Rxa6 {[%clk 0:00:29]} 38. Ke1 {[%clk 0:00:31]}  Ra2 {[%clk 0:00:24]} 39. Rf6 {[%clk 0:00:19]}  Re2+ {[%clk 0:00:20]} 40. Kf1 {[%clk 0:00:19]}  Re5 {[%clk 0:00:18]} 41. Rf8 {[%clk 0:00:16]}  Rd5 {[%clk 0:00:16]} 42. Ke1 {[%clk 0:00:16]}  Rd7 {[%clk 0:00:15]} 43. Ra8 {[%clk 0:00:15]}  Kf4 {[%clk 0:00:07]} 44. Ra4+ {[%clk 0:00:15]}  Nd4 {[%clk 0:00:08]} 45. Kd2 {[%clk 0:00:15]}  e5 {[%clk 0:00:08]} 46. Nc3 {[%clk 0:00:14]}  Kf3 {[%clk 0:00:08]} 47. Kd3 {[%clk 0:00:12]}  Nb5+ {[%clk 0:00:08]} 48. Kc4 {[%clk 0:00:10]}  Nxc3 {[%clk 0:00:09]} 49. Kxc3 {[%clk 0:00:10]}  e4 {[%clk 0:00:09]} 50. Ra8 {[%clk 0:00:10]}  e3 {[%clk 0:00:09]} 51. Rf8+ {[%clk 0:00:11]}  Ke2 {[%clk 0:00:09]} 52. Re8 {[%clk 0:00:11]}  Kf2 {[%clk 0:00:09]} 53. Kc2 {[%clk 0:00:12]}  e2 {[%clk 0:00:09]} 54. Rf8+ {[%clk 0:00:12]}  Ke1 {[%clk 0:00:09]} 55. Re8 {[%clk 0:00:13]}  Rd5 {[%clk 0:00:09]} 56. Re7 {[%clk 0:00:13]}  Kf2 {[%clk 0:00:08]} 57. Rf7+ {[%clk 0:00:13]}  Ke1 {[%clk 0:00:08]} 58. Re7 {[%clk 0:00:14]}  Rd8 {[%clk 0:00:07]} 59. Re6 {[%clk 0:00:13]}  Rc8+ {[%clk 0:00:07]} 60. Kd3 {[%clk 0:00:12]}  Kd1 {[%clk 0:00:05]} 61. Rxe2 {[%clk 0:00:11]}  Rd8+ {[%clk 0:00:05]} 62. Ke3 {[%clk 0:00:11]}  Re8+ {[%clk 0:00:05]} 63. Kf3 {[%clk 0:00:12]}  Rxe2 {[%clk 0:00:05]} 64. Kf4 {[%clk 0:00:13]}  Kd2 {[%clk 0:00:06]} 65. Kf5 {[%clk 0:00:14]}  Re3 {[%clk 0:00:06]} 66. Kf6 {[%clk 0:00:15]}  Kd3 {[%clk 0:00:07]} 67. Kf7 {[%clk 0:00:16]}  Re4 {[%clk 0:00:07]} 68. Kf8 {[%clk 0:00:17]}  Kd4 {[%clk 0:00:07]} 69. Kg7 {[%clk 0:00:17]}  Re6 {[%clk 0:00:07]} 70. Kh8 {[%clk 0:00:18]}  Kd5 {[%clk 0:00:07]} 71. Kg8 {[%clk 0:00:19]}  Kd6 {[%clk 0:00:07]} 72. Kg7 {[%clk 0:00:20]}  Ke7 {[%clk 0:00:08]} 73. Kg8 {[%clk 0:00:20]}  Rg6+ {[%clk 0:00:08]} 74. Kh8 {[%clk 0:00:21]}  Kf7 {[%clk 0:00:07]} 75. Kh7 {[%clk 0:00:22]}  Rf6 {[%clk 0:00:07]} 76. Kh8 {[%clk 0:00:23]}  Rh6# {[%clk 0:00:07]} 0-1


[Site "https://www.chess.com"]